[Event "XIII Mediterranean Championship 2023"]
[Site "Castell-Platja d Aro"]
[Date "2023.11.06"]
[Round "4.7"]
[White "Gilevych, Artem"]
[Black "Domene Mulyukov, Alexander"]
[Result "1/2-1/2"]
[ECO "C10"]
[WhiteElo "2416"]
[BlackElo "2198"]
[Annotator "RC"]
[PlyCount "219"]
[EventDate "2023.10.26"]
[EventType "swiss"]
[EventCountry "ESP"]
[SourceTitle "playchess.com"]
[Source "ChessBase"]
[SourceQuality "1"]
[TimeControl "5400+30"]

1. e4 {[%emt 0:00:05]} c5 {[%emt 0:02:48]} 2. Nf3 {[%emt 0:00:07]} e6 {[%emt 0:00:06]} 3. c3 {[%emt 0:00:05]} d5 {[%emt 0:01:30]} 4. exd5 {[%emt 0:00:22]} Qxd5 {[%emt 0:00:06]} 5. d4 {[%emt 0:00:13]} Nf6 {[%emt 0:00:03]} 6. Na3 {[%emt 0:02:08]} Nc6 {[%emt 0:00:09]} 7. Be3 {[%emt 0:01:51]} cxd4 {[%emt 0:00:52]} 8. Nb5 {[%emt 0:00:37]} Qd8 {[%emt 0:00:19]} 9. Nbxd4 {[%emt 0:01:04]} Nxd4 {[%emt 0:02:39]} 10. Bxd4 {[%emt 0:00:37]} Be7 {[%emt 0:00:33]} 11. Bd3 {[%emt 0:02:46]} O-O {[%emt 0:00:28]} 12. Qc2 {[%emt 0:02:09]} h6 {[%emt 0:03:12]} 13. Rd1 {[%emt 0:02:57]} Nd5 {[%emt 0:04:56]} 14. O-O {[%emt 0:02:53]} Qa5 {[%emt 0:03:30]} 15. b4 {[%emt 0:22:59]} Qc7 {[%emt 0:00:51]} 16. Be5 {[%emt 0:02:09]} Qb6 {[%emt 0:00:31]} 17. a3 {[%emt 0:01:35]} Bf6 {[%emt 0:09:23]} 18. c4 {[%emt 0:11:22]} Bxe5 {[%emt 0:01:37]} 19. Nxe5 {[%emt 0:00:03]} Nf6 {[%emt 0:02:31]} 20. Rfe1 {[%emt 0:09:01]} Qc7 {[%emt 0:03:18]} 21. c5 {[%emt 0:00:13]} Nd7 {[%emt 0:04:24]} 22. Ng4 {[%emt 0:04:25]} Qf4 {[%emt 0:06:19]} 23. Qe2 {[%emt 0:01:00]} h5 {[%emt 0:05:11]} 24. Ne5 {[%emt 0:05:42]} Nxe5 {[%emt 0:05:39]} 25. Qxe5 {[%emt 0:00:02]} Qxe5 {[%emt 0:00:23]} 26. Rxe5 {[%emt 0:00:01]} g6 {[%emt 0:02:27]} 27. Re2 {[%emt 0:07:27]} Rd8 {[%emt 0:02:44]} 28. Red2 {[%emt 0:00:24]} Kf8 {[%emt 0:00:27]} 29. f4 {[%emt 0:01:29]} Ke7 {[%emt 0:02:06]} 30. Be4 {[%emt 0:00:11]} Rxd2 {[%emt 0:01:18]} 31. Rxd2 {[%emt 0:00:01]} Rb8 {[%emt 0:02:46]} 32. Kf2 {[%emt 0:07:47]} Bd7 {[%emt 0:04:52]} 33. Ke3 {[%emt 0:00:07]} Ba4 {[%emt 0:07:07]} 34. g3 {[%emt 0:00:59]} b6 {[%emt 0:02:41]} 35. c6 {[%emt 0:03:47]} Rc8 {[%emt 0:17:01]} 36. Rd7+ {[%emt 0:00:21]} Kf6 {[%emt 0:00:13]} 37. Rxa7 {[%emt 0:00:34]} Bxc6 {[%emt 0:00:07]} 38. Bd3 {[%emt 0:00:45]} Bd5 {[%emt 0:01:32]} 39. Kd4 {[%emt 0:03:26]} Rb8 {[%emt 0:02:29]} 40. a4 {[%emt 0:00:33]} Rd8 {[%emt 0:00:44]} 41. Kc3 {[%emt 0:02:20]} Rc8+ {[%emt 0:00:31]} 42. Kd4 {[%emt 0:00:17]} Rd8 {[%emt 0:00:22]} 43. Ke3 {[%emt 0:00:05]} Rb8 {[%emt 0:00:39]} 44. Bb5 {[%emt 0:01:29]} e5 {[%emt 0:00:24]} 45. Bd7 {[%emt 0:01:02]} g5 {[%emt 0:00:36]} 46. fxg5+ {[%emt 0:01:39]} Kxg5 {[%emt 0:00:08]} 47. h4+ {[%emt 0:01:57]} Kf6 {[%emt 0:00:09]} 48. Ra6 {[%emt 0:00:32]} Ke7 {[%emt 0:00:59]} 49. Bf5 {[%emt 0:00:13]} Rb7 {[%emt 0:00:46]} 50. Bd3 {[%emt 0:00:17]} Rb8 {[%emt 0:00:26]} 51. Be2 {[%emt 0:00:18]} f5 {[%emt 0:00:36]} 52. Bxh5 {[%emt 0:00:17]} Rc8 {[%emt 0:00:30]} 53. Rxb6 {[%emt 0:00:44]} Rc3+ {[%emt 0:00:12]} 54. Kf2 {[%emt 0:00:07]} Rc2+ {[%emt 0:00:17]} 55. Ke1 {[%emt 0:00:10]} e4 {[%emt 0:01:00]} 56. Bg6 {[%emt 0:01:01]} Be6 {[%emt 0:00:31]} 57. g4 {[%emt 0:00:10]} fxg4 {[%emt 0:00:29]} 58. Bxe4 {[%emt 0:00:06]} Ra2 {[%emt 0:00:28]} 59. h5 {[%emt 0:01:52]} Bc4 {[%emt 0:00:33]} 60. Bc6 {[%emt 0:00:48]} Re2+ {[%emt 0:00:28]} 61. Kd1 {[%emt 0:00:04]} Re6 {[%emt 0:00:30]} 62. a5 {[%emt 0:00:57]} g3 {[%emt 0:00:31]} 63. Ba8 {[%emt 0:00:31]} Be2+ {[%emt 0:00:29]} 64. Ke1 {[%emt 0:00:13]} Re5 {[%emt 0:00:22]} 65. Kd2 {[%emt 0:00:48]} Bxh5 {[%emt 0:00:16]} 66. a6 {[%emt 0:00:07]} Re2+ {[%emt 0:00:22]} 67. Kc3 {[%emt 0:00:10]} g2 {[%emt 0:00:39]} 68. Bxg2 {[%emt 0:00:56]} Rxg2 {[%emt 0:00:02]} 69. b5 {[%emt 0:00:39]} Bf3 {[%emt 0:00:21]} 70. Rb8 {[%emt 0:00:38]} Ra2 {[%emt 0:00:49]} 71. Kd4 {[%emt 0:00:37]} Kd6 {[%emt 0:00:33]} 72. Rb6+ {[%emt 0:00:28]} Kd7 {[%emt 0:01:01]} 73. Rf6 {[%emt 0:00:11]} Be2 {[%emt 0:00:25]} 74. Kc5 {[%emt 0:00:07]} Rb2 {[%emt 0:00:34]} 75. Rf7+ {[%emt 0:01:02]} Ke6 {[%emt 0:00:37]} 76. Rb7 {[%emt 0:00:29]} Rc2+ {[%emt 0:00:31]} 77. Kb6 {[%emt 0:00:31]} Rb2 {[%emt 0:00:26]} 78. Kc5 {[%emt 0:00:17]} Rc2+ {[%emt 0:00:16]} 79. Kb6 {[%emt 0:00:01]} Rb2 {[%emt 0:00:01]} 80. Kc7 {[%emt 0:01:17]} Bxb5 {[%emt 0:01:12]} 81. Rb6+ {[%emt 0:00:10]} Ke7 {[%emt 0:00:30]} 82. a7 {[%emt 0:00:23]} Ra2 {[%emt 0:00:32]} 83. Kb8 {[%emt 0:00:07]} Bc4 {[%emt 0:00:27]} 84. a8=Q {[%emt 0:00:26]} Rxa8+ {[%emt 0:00:06]} 85. Kxa8 {[%emt 0:00:02]} Kd7 {[%emt 0:00:11]} 86. Rb4 {[%emt 0:00:15]} Bd5+ {[%emt 0:00:20]} 87. Kb8 {[%emt 0:00:06]} Kc6 {[%emt 0:00:08]} 88. Rh4 {[%emt 0:00:08]} Kd6 {[%emt 0:00:55]} 89. Ka7 {[%emt 0:00:12]} Kc5 {[%emt 0:00:24]} 90. Rh6 {[%emt 0:00:09]} Bc6 {[%emt 0:00:16]} 91. Ka6 {[%emt 0:00:06]} Bb5+ {[%emt 0:00:41]} 92. Ka5 {[%emt 0:00:03]} Bc6 {[%emt 0:00:11]} 93. Rh5+ {[%emt 0:00:10]} Bd5 {[%emt 0:00:21]} 94. Rg5 {[%emt 0:00:02]} Kc4 {[%emt 0:00:30]} 95. Kb6 {[%emt 0:00:03]} Bf3 {[%emt 0:00:22]} 96. Rf5 {[%emt 0:00:18]} Bg2 {[%emt 0:00:35]} 97. Kc7 {[%emt 0:00:15]} Be4 {[%emt 0:00:20]} 98. Re5 {[%emt 0:00:04]} Kd4 {[%emt 0:00:18]} 99. Kd6 {[%emt 0:00:03]} Bb7 {[%emt 0:00:28]} 100. Rb5 {[%emt 0:00:18]} Ba6 {[%emt 0:01:13]} 101. Rb4+ {[%emt 0:00:07]} Bc4 {[%emt 0:00:16]} 102. Ra4 {[%emt 0:00:04]} Kc3 {[%emt 0:00:29]} 103. Kc5 {[%emt 0:00:04]} Bg8 {[%emt 0:01:12]} 104. Ra3+ {[%emt 0:00:10]} Kc2 {[%emt 0:00:38]} 105. Kb4 {[%emt 0:00:06]} Bf7 {[%emt 0:00:21]} 106. Rg3 {[%emt 0:00:31]} Kd2 {[%emt 0:00:50]} 107. Kc5 {[%emt 0:00:05]} Ke2 {[%emt 0:00:55]} 108. Kd4 {[%emt 0:00:10]} Kf2 {[%emt 0:00:33]} 109. Re3 {[%emt 0:00:09]} Bd5 {[%emt 0:00:11]} 110. Re7 {[%emt 0:09:08]} 1/2-1/2

[Event "XIII Mediterranean Championship 2023"]
[Site "Castell-Platja d Aro"]
[Date "2023.11.06"]
[Round "4.8"]
[White "Guillo Longares, Cecilia"]
[Black "Lacasa Diaz, Jose Antonio"]
[Result "1/2-1/2"]
[ECO "D31"]
[WhiteElo "2065"]
[BlackElo "2353"]
[Annotator "RC"]
[PlyCount "47"]
[EventDate "2023.10.26"]
[EventType "swiss"]
[EventCountry "ESP"]
[SourceTitle "playchess.com"]
[Source "ChessBase"]
[SourceQuality "1"]
[TimeControl "5400+30"]

1. d4 {[%emt 0:00:01]} d5 {[%emt 0:00:27]} 2. c4 {[%emt 0:00:06]} e6 {[%emt 0:00:09]} 3. Nc3 {[%emt 0:00:05]} a6 {[%emt 0:00:29]} 4. cxd5 {[%emt 0:00:32]} exd5 {[%emt 0:00:08]} 5. Nf3 {[%emt 0:00:14]} h6 {[%emt 0:00:26]} 6. Bf4 {[%emt 0:01:25]} Nf6 {[%emt 0:00:13]} 7. h3 {[%emt 0:00:46]} Bd6 {[%emt 0:00:39]} 8. Bxd6 {[%emt 0:03:33]} Qxd6 {[%emt 0:00:20]} 9. e3 {[%emt 0:00:55]} Bf5 {[%emt 0:00:38]} 10. Qb3 {[%emt 0:09:30]} O-O {[%emt 0:02:42]} 11. Ne5 {[%emt 0:04:35]} Nbd7 {[%emt 0:03:11]} 12. Bd3 {[%emt 0:00:29]} Bxd3 {[%emt 0:12:11]} 13. Nxd3 {[%emt 0:00:08]} b6 {[%emt 0:00:22]} 14. Nf4 {[%emt 0:13:04]} c6 {[%emt 0:13:19]} 15. O-O {[%emt 0:00:44]} a5 {[%emt 0:17:24]} 16. Rac1 {[%emt 0:04:00]} Rfc8 {[%emt 0:01:54]} 17. Rfd1 {[%emt 0:02:46]} Rab8 {[%emt 0:01:32]} 18. Qc2 {[%emt 0:05:17]} Nf8 {[%emt 0:03:55]} 19. Qf5 {[%emt 0:06:04]} g6 {[%emt 0:03:09]} 20. Qd3 {[%emt 0:08:32]} Kg7 {[%emt 0:01:13]} 21. Rc2 {[%emt 0:03:25]} Ne6 {[%emt 0:09:53]} 22. Nce2 {[%emt 0:03:35]} h5 {[%emt 0:06:43]} 23. Rdc1 {[%emt 0:04:34]} Nxf4 {[%emt 0:03:59]} 24. Nxf4 {[%emt 0:00:20]} 1/2-1/2

[Event "XIII Mediterranean Championship 2023"]
[Site "Castell-Platja d Aro"]
[Date "2023.11.06"]
[Round "4.9"]
[White "Masague Artero, Guerau"]
[Black "Fortuny Profitos, Jordi"]
[Result "1-0"]
[ECO "E92"]
[WhiteElo "2305"]
[BlackElo "2135"]
[Annotator "RC"]
[PlyCount "73"]
[EventDate "2023.10.26"]
[EventType "swiss"]
[EventCountry "ESP"]
[SourceTitle "playchess.com"]
[Source "ChessBase"]
[SourceQuality "1"]
[TimeControl "5400+30"]

1. d4 {[%emt 0:01:29]} Nf6 {[%emt 0:00:06]} 2. c4 {[%emt 0:00:09]} g6 {[%emt 0:00:04]} 3. Nc3 {[%emt 0:00:06]} Bg7 {[%emt 0:00:03]} 4. e4 {[%emt 0:00:07]} d6 {[%emt 0:00:03]} 5. Nf3 {[%emt 0:00:06]} O-O {[%emt 0:00:03]} 6. Be2 {[%emt 0:00:07]} e5 {[%emt 0:00:03]} 7. d5 {[%emt 0:00:08]} a5 {[%emt 0:03:08]} 8. Bg5 {[%emt 0:02:15]} Na6 {[%emt 0:02:40]} 9. Nd2 {[%emt 0:00:49]} Qe8 {[%emt 0:02:29]} 10. g4 {[%emt 0:04:44]} Kh8 {[%emt 0:10:09]} 11. h4 {[%emt 0:05:44]} Ng8 {[%emt 0:01:46]} 12. h5 {[%emt 0:17:16]} f6 {[%emt 0:09:54]} 13. Be3 {[%emt 0:07:13]} g5 {[%emt 0:02:04]} 14. Nf1 {[%emt 0:01:31]} h6 {[%emt 0:04:25]} 15. Ng3 {[%emt 0:00:16]} Rf7 {[%emt 0:00:58]} 16. O-O {[%emt 0:01:54]} Bf8 {[%emt 0:00:43]} 17. a3 {[%emt 0:10:34]} Bd7 {[%emt 0:05:49]} 18. b3 {[%emt 0:02:22]} b6 {[%emt 0:26:05]} 19. Qc2 {[%emt 0:03:11]} Be7 {[%emt 0:04:41]} 20. Qb2 {[%emt 0:01:47]} Nc5 {[%emt 0:01:00]} 21. b4 {[%emt 0:00:32]} Nb7 {[%emt 0:02:33]} 22. Kg2 {[%emt 0:01:10]} Rf8 {[%emt 0:00:49]} 23. Rfc1 {[%emt 0:00:26]} Qf7 {[%emt 0:00:24]} 24. Nb5 {[%emt 0:01:03]} Rfc8 {[%emt 0:02:45]} 25. f3 {[%emt 0:00:40]} Qe8 {[%emt 0:03:50]} 26. Bd3 {[%emt 0:02:16]} Kh7 {[%emt 0:02:18]} 27. Ne2 {[%emt 0:00:27]} Bf8 {[%emt 0:03:27]} 28. Nec3 {[%emt 0:00:15]} Be7 {[%emt 0:00:03]} 29. Qf2 {[%emt 0:00:06]} Qf8 {[%emt 0:01:39]} 30. Na4 {[%emt 0:01:03]} Bd8 {[%emt 0:01:47]} 31. c5 {[%emt 0:01:56]} Bxb5 {[%emt 0:02:59]} 32. Bxb5 {[%emt 0:00:17]} axb4 {[%emt 0:00:07]} 33. cxb6 {[%emt 0:02:12]} bxa3 {[%emt 0:01:31]} 34. Bd7 {[%emt 0:02:11]} Rxa4 {[%emt 0:03:13]} 35. Bxc8 {[%emt 0:01:17]} Nc5 {[%emt 0:00:16]} 36. Rxc5 {[%emt 0:00:35]} dxc5 {[%emt 0:00:14]} 37. b7 {[%emt 0:00:07]} 1-0

[Event "XIII Mediterranean Championship 2023"]
[Site "Castell-Platja d Aro"]
[Date "2023.11.06"]
[Round "4.10"]
[White "Rodriguez Redondo, Adhara"]
[Black "Lazaro Pujol, Abel"]
[Result "0-1"]
[ECO "C54"]
[WhiteElo "2117"]
[BlackElo "2289"]
[Annotator "RC"]
[PlyCount "136"]
[EventDate "2023.10.26"]
[EventType "swiss"]
[EventCountry "ESP"]
[SourceTitle "playchess.com"]
[Source "ChessBase"]
[SourceQuality "1"]
[TimeControl "5400+30"]

1. e4 {[%emt 0:00:01]} e5 {[%emt 0:03:27]} 2. Nf3 {[%emt 0:00:13]} Nc6 {[%emt 0:00:14]} 3. Bc4 {[%emt 0:00:21]} Bc5 {[%emt 0:00:23]} 4. c3 {[%emt 0:00:21]} Nf6 {[%emt 0:00:18]} 5. d3 {[%emt 0:00:05]} d6 {[%emt 0:02:23]} 6. O-O {[%emt 0:01:11]} a6 {[%emt 0:00:47]} 7. Bb3 {[%emt 0:01:10]} Ba7 {[%emt 0:00:30]} 8. Nbd2 {[%emt 0:01:45]} O-O {[%emt 0:00:49]} 9. h3 {[%emt 0:02:10]} h6 {[%emt 0:00:36]} 10. Re1 {[%emt 0:00:39]} Re8 {[%emt 0:01:03]} 11. Nf1 {[%emt 0:02:15]} Be6 {[%emt 0:01:31]} 12. Bc2 {[%emt 0:02:53]} d5 {[%emt 0:02:34]} 13. exd5 {[%emt 0:00:07]} Bxd5 {[%emt 0:00:25]} 14. Ng3 {[%emt 0:00:41]} Qd6 {[%emt 0:00:44]} 15. Nh4 {[%emt 0:10:14]} Ne7 {[%emt 0:01:51]} 16. Be3 {[%emt 0:14:22]} Bxe3 {[%emt 0:06:35]} 17. Rxe3 {[%emt 0:00:39]} Ng6 {[%emt 0:07:20]} 18. Nxg6 {[%emt 0:10:14]} fxg6 {[%emt 0:00:29]} 19. Qe2 {[%emt 0:13:03]} Qc6 {[%emt 0:04:04]} 20. f3 {[%emt 0:06:13]} Qb6 {[%emt 0:07:59]} 21. Ba4 {[%emt 0:04:49]} Bc6 {[%emt 0:04:26]} 22. Bb3+ {[%emt 0:03:46]} Kh7 {[%emt 0:04:43]} 23. Kh2 {[%emt 0:00:38]} a5 {[%emt 0:04:35]} 24. Re1 {[%emt 0:01:01]} Rad8 {[%emt 0:02:37]} 25. Qc2 {[%emt 0:02:26]} Qc5 {[%emt 0:02:39]} 26. Bf7 {[%emt 0:00:56]} Qd6 {[%emt 0:17:25]} 27. Bxe8 {[%emt 0:00:41]} Rxe8 {[%emt 0:00:42]} 28. Ne4 {[%emt 0:07:44]} Bxe4 {[%emt 0:02:47]} 29. dxe4 {[%emt 0:00:57]} Rd8 {[%emt 0:02:30]} 30. Rf1 {[%emt 0:03:56]} Nh5 {[%emt 0:03:31]} 31. g3 {[%emt 0:04:45]} Qd2+ {[%emt 0:03:21]} 32. Re2 {[%emt 0:00:29]} Qg5 {[%emt 0:00:12]} 33. Rg1 {[%emt 0:00:27]} Rd6 {[%emt 0:01:05]} 34. Rgg2 {[%emt 0:01:38]} Qf6 {[%emt 0:00:56]} 35. Ref2 {[%emt 0:00:46]} b6 {[%emt 0:01:23]} 36. Qe2 {[%emt 0:01:30]} Qf7 {[%emt 0:06:03]} 37. b3 {[%emt 0:01:25]} Qd7 {[%emt 0:01:54]} 38. Qc2 {[%emt 0:00:32]} Qf7 {[%emt 0:00:10]} 39. a4 {[%emt 0:02:10]} c5 {[%emt 0:01:54]} 40. Rf1 {[%emt 0:00:41]} Qd7 {[%emt 0:01:18]} 41. c4 {[%emt 0:00:31]} Rd4 {[%emt 0:00:45]} 42. Rff2 {[%emt 0:00:19]} Qf7 {[%emt 0:01:10]} 43. Qc3 {[%emt 0:00:22]} Nf6 {[%emt 0:00:44]} 44. Rd2 {[%emt 0:00:34]} Nd7 {[%emt 0:00:07]} 45. Rgf2 {[%emt 0:00:19]} g5 {[%emt 0:00:57]} 46. Qc2 {[%emt 0:00:24]} Kh8 {[%emt 0:00:51]} 47. Qd1 {[%emt 0:00:56]} Kh7 {[%emt 0:00:36]} 48. Qf1 {[%emt 0:00:26]} Qe6 {[%emt 0:00:34]} 49. Kg2 {[%emt 0:00:26]} Qd6 {[%emt 0:00:11]} 50. Qe2 {[%emt 0:00:31]} Qf6 {[%emt 0:00:39]} 51. Qd1 {[%emt 0:00:41]} Qd6 {[%emt 0:00:30]} 52. Qc2 {[%emt 0:00:16]} Kh8 {[%emt 0:00:15]} 53. Qc1 {[%emt 0:00:39]} Kh7 {[%emt 0:00:12]} 54. Qe1 {[%emt 0:00:31]} Qf6 {[%emt 0:00:23]} 55. Rxd4 {[%emt 0:00:33]} cxd4 {[%emt 0:00:15]} 56. b4 {[%emt 0:00:28]} Qc6 {[%emt 0:00:56]} 57. bxa5 {[%emt 0:00:20]} Qxa4 {[%emt 0:00:14]} 58. axb6 {[%emt 0:00:22]} Nxb6 {[%emt 0:00:01]} 59. c5 {[%emt 0:00:52]} Nc4 {[%emt 0:00:03]} 60. Qe2 {[%emt 0:00:31]} Ne3+ {[%emt 0:00:38]} 61. Kh2 {[%emt 0:00:15]} Qc6 {[%emt 0:00:24]} 62. Qd3 {[%emt 0:00:42]} Qxc5 {[%emt 0:00:11]} 63. f4 {[%emt 0:00:34]} gxf4 {[%emt 0:01:51]} 64. gxf4 {[%emt 0:00:06]} Qe7 {[%emt 0:00:23]} 65. Rf3 {[%emt 0:00:53]} Qf7 {[%emt 0:00:47]} 66. f5 {[%emt 0:00:29]} Qa2+ {[%emt 0:00:07]} 67. Kg3 {[%emt 0:00:33]} Qg2+ {[%emt 0:00:08]} 68. Kh4 {[%emt 0:00:08]} Qg5# {[%emt 0:00:06]} 0-1

[Event "XIII Mediterranean Championship 2023"]
[Site "Castell-Platja d Aro"]
[Date "2023.11.06"]
[Round "4.11"]
[White "Galvan Cipriani, Viviana"]
[Black "Garcia Jimenez, Francisco Javier"]
[Result "0-1"]
[ECO "D45"]
[WhiteElo "2077"]
[BlackElo "2249"]
[Annotator "RC"]
[PlyCount "60"]
[EventDate "2023.10.26"]
[EventType "swiss"]
[EventCountry "ESP"]
[SourceTitle "playchess.com"]
[Source "ChessBase"]
[SourceQuality "1"]
[TimeControl "5400+30"]

1. Nf3 {[%emt 0:05:37]} d5 {[%emt 0:10:51]} 2. d4 {[%emt 0:00:33]} Nf6 {[%emt 0:00:18]} 3. c4 {[%emt 0:00:11]} c6 {[%emt 0:00:43]} 4. Nc3 {[%emt 0:00:07]} e6 {[%emt 0:00:46]} 5. e3 {[%emt 0:00:21]} Nbd7 {[%emt 0:00:40]} 6. Qc2 {[%emt 0:00:15]} a6 {[%emt 0:01:57]} 7. Bd3 {[%emt 0:03:37]} dxc4 {[%emt 0:01:31]} 8. Bxc4 {[%emt 0:00:12]} b5 {[%emt 0:00:10]} 9. Bd3 {[%emt 0:00:24]} c5 {[%emt 0:00:20]} 10. b3 {[%emt 0:00:07]} Bb7 {[%emt 0:00:36]} 11. O-O {[%emt 0:07:38]} Rc8 {[%emt 0:00:23]} 12. Qb2 {[%emt 0:01:29]} cxd4 {[%emt 0:04:47]} 13. exd4 {[%emt 0:00:39]} Nb6 {[%emt 0:06:11]} 14. Be3 {[%emt 0:01:43]} Bd6 {[%emt 0:02:46]} 15. Ne2 {[%emt 0:04:51]} O-O {[%emt 0:12:36]} 16. Rfd1 {[%emt 0:06:48]} Bxf3 {[%emt 0:06:11]} 17. gxf3 {[%emt 0:00:22]} Nfd5 {[%emt 0:00:04]} 18. Ng3 {[%emt 0:04:14]} Qh4 {[%emt 0:03:04]} 19. Kg2 {[%emt 0:02:33]} f5 {[%emt 0:06:56]} 20. Bd2 {[%emt 0:00:39]} Bf4 {[%emt 0:01:44]} 21. Rac1 {[%emt 0:19:59]} Rxc1 {[%emt 0:06:37]} 22. Qxc1 {[%emt 0:03:49]} Rc8 {[%emt 0:05:04]} 23. Qb2 {[%emt 0:04:48]} Bxd2 {[%emt 0:00:42]} 24. Rxd2 {[%emt 0:00:16]} Qg5 {[%emt 0:06:13]} 25. Kf1 {[%emt 0:04:26]} Nf4 {[%emt 0:01:33]} 26. Ke1 {[%emt 0:09:05]} Rc1+ {[%emt 0:00:12]} 27. Qxc1 {[%emt 0:03:41]} Nxd3+ {[%emt 0:00:09]} 28. Kd1 {[%emt 0:01:11]} Nxc1 {[%emt 0:00:06]} 29. Kxc1 {[%emt 0:00:05]} Nd5 {[%emt 0:03:02]} 30. Kc2 {[%emt 0:00:29]} Qf4 {[%emt 0:00:28]} 0-1

[Event "XIII Mediterranean Championship 2023"]
[Site "Castell-Platja d Aro"]
[Date "2023.11.06"]
[Round "4.12"]
[White "Hernando Rodrigo, Julio Antonio"]
[Black "Menac Comas, Joan Ramon"]
[Result "1/2-1/2"]
[ECO "B27"]
[WhiteElo "2202"]
[BlackElo "2044"]
[Annotator "RC"]
[PlyCount "106"]
[EventDate "2023.10.26"]
[EventType "swiss"]
[EventCountry "ESP"]
[SourceTitle "playchess.com"]
[Source "ChessBase"]
[SourceQuality "1"]
[TimeControl "5400+30"]

1. e4 {[%emt 0:10:55]} c5 {[%emt 0:00:21]} 2. Nf3 {[%emt 0:00:11]} g6 {[%emt 0:00:06]} 3. d4 {[%emt 0:00:15]} cxd4 {[%emt 0:00:06]} 4. Qxd4 {[%emt 0:00:07]} Nf6 {[%emt 0:00:07]} 5. Nc3 {[%emt 0:00:16]} Nc6 {[%emt 0:00:36]} 6. Qa4 {[%emt 0:00:10]} d6 {[%emt 0:01:02]} 7. e5 {[%emt 0:02:13]} dxe5 {[%emt 0:00:07]} 8. Nxe5 {[%emt 0:00:16]} Bg7 {[%emt 0:00:09]} 9. Bb5 {[%emt 0:03:46]} O-O {[%emt 0:02:13]} 10. Nxc6 {[%emt 0:00:10]} bxc6 {[%emt 0:00:10]} 11. Bxc6 {[%emt 0:00:06]} Rb8 {[%emt 0:00:35]} 12. O-O {[%emt 0:00:31]} Qc7 {[%emt 0:05:17]} 13. Bf3 {[%emt 0:01:42]} Rb6 {[%emt 0:02:54]} 14. Qh4 {[%emt 0:01:35]} Bb7 {[%emt 0:11:01]} 15. Bxb7 {[%emt 0:05:57]} Qxb7 {[%emt 0:00:17]} 16. a4 {[%emt 0:02:51]} Rb4 {[%emt 0:07:23]} 17. Qh3 {[%emt 0:00:18]} Rc8 {[%emt 0:04:33]} 18. Rd1 {[%emt 0:01:15]} h5 {[%emt 0:02:54]} 19. Qf3 {[%emt 0:04:39]} Qb8 {[%emt 0:08:35]} 20. h3 {[%emt 0:12:16]} Rc5 {[%emt 0:08:34]} 21. Ra3 {[%emt 0:03:49]} Rf5 {[%emt 0:08:27]} 22. Qe2 {[%emt 0:01:21]} Re5 {[%emt 0:06:32]} 23. Qf1 {[%emt 0:09:34]} g5 {[%emt 0:06:06]} 24. Na2 {[%emt 0:03:38]} Rxb2 {[%emt 0:05:42]} 25. Rad3 {[%emt 0:02:40]} Qb6 {[%emt 0:02:40]} 26. Rd8+ {[%emt 0:00:44]} Bf8 {[%emt 0:00:22]} 27. Bxb2 {[%emt 0:00:40]} Qxb2 {[%emt 0:00:10]} 28. Qc4 {[%emt 0:00:31]} Re4 {[%emt 0:02:12]} 29. Qc8 {[%emt 0:01:13]} Nh7 {[%emt 0:03:54]} 30. Nc3 {[%emt 0:01:11]} Re5 {[%emt 0:02:01]} 31. Nd5 {[%emt 0:02:29]} e6 {[%emt 0:01:04]} 32. Nf6+ {[%emt 0:02:26]} Nxf6 {[%emt 0:01:09]} 33. Rxf8+ {[%emt 0:00:06]} Kg7 {[%emt 0:00:02]} 34. Rh8 {[%emt 0:00:59]} Qb4 {[%emt 0:00:21]} 35. Qb8 {[%emt 0:00:48]} Re1+ {[%emt 0:00:58]} 36. Rxe1 {[%emt 0:00:10]} Qxe1+ {[%emt 0:00:05]} 37. Kh2 {[%emt 0:00:03]} Qxf2 {[%emt 0:00:18]} 38. Qf8+ {[%emt 0:05:16]} Kg6 {[%emt 0:00:05]} 39. Rh6+ {[%emt 0:00:14]} Kf5 {[%emt 0:00:05]} 40. Qa3 {[%emt 0:01:26]} g4 {[%emt 0:05:47]} 41. Qd3+ {[%emt 0:11:06]} Kg5 {[%emt 0:00:06]} 42. Rh8 {[%emt 0:00:13]} h4 {[%emt 0:01:39]} 43. hxg4 {[%emt 0:00:38]} Nxg4+ {[%emt 0:00:06]} 44. Kh3 {[%emt 0:00:12]} Qf4 {[%emt 0:02:25]} 45. Rg8+ {[%emt 0:04:16]} Kh5 {[%emt 0:00:03]} 46. Qh7+ {[%emt 0:00:39]} Nh6 {[%emt 0:00:01]} 47. a5 {[%emt 0:04:22]} Qe3+ {[%emt 0:01:06]} 48. Kh2 {[%emt 0:00:02]} Qe5+ {[%emt 0:00:46]} 49. Kh3 {[%emt 0:00:35]} Qe3+ {[%emt 0:00:08]} 50. g3 {[%emt 0:00:15]} Qf3 {[%emt 0:00:16]} 51. Kh2 {[%emt 0:02:01]} Qf2+ {[%emt 0:00:11]} 52. Kh3 {[%emt 0:00:15]} Qf1+ {[%emt 0:00:16]} 53. Kh2 {[%emt 0:00:03]} Qf2+ {[%emt 0:00:07]} 1/2-1/2